fUST/lending_fUST_20250624
["ID","MTS","AMOUNT","RATE_DAILY","PERIOD"]
[367246463,1750713082830,-1000.0,0.00024658,2]
[367246464,1750713082839,-1000.0,0.00024658,2]
[367246465,1750713082849,-1000.0,0.00024658,2]
[367246466,1750713082982,-1000.0,0.00024658,2]
[367246467,1750713082992,-1000.0,0.00024658,2]
[367246468,1750713083002,-1000.0,0.00024658,2]
[367246469,1750713083012,-1000.0,0.00024658,2]
[367246470,1750713083021,-1000.0,0.00024658,2]
[367246471,1750713083030,-1000.0,0.00024658,2]
[367246472,1750713083039,-380.0,0.00024658,2]
[367246473,1750713083048,-200.0,0.00024658,2]
[367246474,1750713083057,-1000.0,0.00024658,2]
[367246475,1750713083066,-200.0,0.00024658,15]
[367246476,1750713083075,-1000.0,0.00024658,2]
[367246477,1750713083085,-157.233899,0.00024658,7]
[367246478,1750713083094,-157.233899,0.00024658,7]
[367246479,1750713083103,-157.233899,0.00024658,7]
[367246480,1750713083112,-157.233899,0.00024658,7]
[367246481,1750713083121,-157.233899,0.00024658,7]
[367246482,1750713083131,-157.233899,0.00024658,7]
[367246483,1750713083142,-157.233899,0.00024658,7]
[367246484,1750713083152,-157.233899,0.00024658,7]
[367246485,1750713083161,-157.233899,0.00024658,7]
[367246486,1750713083170,-157.233899,0.00024658,7]
[367246487,1750713083179,-157.233899,0.00024658,7]
[367246488,1750713083188,-157.233899,0.00024658,7]
[367246489,1750713083197,-157.233899,0.00024658,7]
[367246490,1750713083207,-157.233899,0.00024658,7]
[367246491,1750713083217,-157.233899,0.00024658,7]
[367246492,1750713083225,-157.233899,0.00024658,7]
[367246493,1750713083235,-157.233899,0.00024658,7]
[367246494,1750713083246,-157.233899,0.00024658,7]
[367246495,1750713083256,-157.233899,0.00024658,7]
[367246496,1750713083265,-157.233896,0.00024658,7]
[367246497,1750713083275,-1000.0,0.00024658,2]
[367246498,1750713083284,-647.0,0.00024658,2]
[367246499,1750713083294,-12065.62165395,0.00024662,120]
[367246500,1750713083303,-500.0,0.00024664,2]
[367246501,1750713083313,-500.0,0.00024673,2]
[367246502,1750713083322,-250000.0,0.0002468,2]
[367246503,1750713083332,-298086.9163442,0.0002468,7]
[367246504,1750713083364,209.72,0.0002336,30]
[367246505,1750713083717,-391.50529064,0.00019221,2]
[367246506,1750713083728,-96.78682296,0.00019233,2]
[367246507,1750713083943,-363.21317704,0.00019233,2]
[367246508,1750713083953,-460.0,0.00019233,2]
[367246509,1750713083963,-353.02838828,0.00019507,2]
[367246510,1750713083975,-13.55161172,0.00019507,2]
[367246511,1750713083984,-460.0,0.00019507,2]
[367246512,1750713083994,-460.0,0.00019781,2]
[367246513,1750713084003,-460.0,0.00020055,2]
[367246514,1750713084013,-785.89961003,0.00022368,2]
[367246515,1750713084022,-12500.0,0.00023606,3]
[367246516,1750713084032,-251.67,0.00024295,30]
[367246517,1750713084042,-2168.5993596,0.0002468,7]
[367246518,1750713084052,-647.0,0.00024685,2]
[367246519,1750713084062,-239.84119403,0.00024686,2]
[367246520,1750713084071,-3000.0,0.00024688,3]
[367246521,1750713084081,-800.0,0.00024692,2]
[367246522,1750713084090,-1917.77,0.000247,2]
[367246523,1750713084100,-1996.47,0.000247,2]
[367246524,1750713084110,-768.95,0.00024702,2]
[367246525,1750713084120,-499.06,0.00024702,2]
[367246526,1750713084130,-1326.42,0.00024702,2]
[367246527,1750713084139,-1916.14,0.00024702,2]
[367246528,1750713084149,-2981.58,0.00024702,2]
[367246529,1750713084159,-561.49,0.00024702,2]
[367246530,1750713084169,-998.87,0.00024702,2]
[367246531,1750713084178,-746.54,0.00024702,2]
[367246532,1750713084188,-1197.46,0.00024702,2]
[367246533,1750713084197,-868.07,0.00024702,2]
[367246534,1750713084206,-608.93,0.00024702,2]
[367246535,1750713084215,-3607.91,0.00024702,2]
[367246536,1750713084226,-1233.5,0.00024702,2]
[367246537,1750713084236,-852.78,0.00024702,2]
[367246538,1750713084246,-811.33,0.00024702,2]
[367246539,1750713084255,-162.02214945,0.00024702,2]
[367246540,1750713084265,-600.0,0.00024708,2]
[367246541,1750713084275,-555.63,0.00024709,2]
[367246542,1750713084285,-834.36,0.00024709,2]
[367246543,1750713084295,-460.0,0.00024709,2]
[367246544,1750713084305,-460.0,0.00024709,2]
[367246545,1750713084315,-460.0,0.00024709,2]
[367246546,1750713084325,-1007.44,0.00024709,2]
[367246547,1750713084335,-460.0,0.00024709,2]
[367246548,1750713084345,-778.84,0.00024709,2]
[367246549,1750713084357,-691.92,0.00024709,2]
[367246550,1750713084368,-681.31,0.00024709,2]
[367246551,1750713084378,-673.85,0.00024709,2]
[367246552,1750713084388,-688.21,0.00024709,2]
[367246553,1750713084398,-212.32494217,0.00024709,2]
[367246554,1750713084408,-460.0,0.00024709,2]
[367246555,1750713084419,-611.84,0.00024709,2]
[367246556,1750713084429,-1114.83,0.00024709,2]
[367246557,1750713084439,-872.33,0.00024709,2]
[367246558,1750713084448,-460.0,0.00024709,2]
[367246559,1750713084458,-648.26,0.00024709,2]
[367246560,1750713084470,-474.73,0.00024709,2]
[367246561,1750713084480,-1112.93,0.00024709,2]
[367246562,1750713084491,-2164.23,0.00024712,3]
[367246563,1750713084501,-1763.36,0.00024712,2]
[367246564,1750713084511,-735.83,0.00024712,2]
[367246565,1750713084521,-6806.59,0.00024712,2]
[367246566,1750713084531,-1456.91,0.00024712,2]
[367246567,1750713084541,-1053.14,0.00024712,2]
[367246568,1750713084552,-799.06,0.00024712,2]
[367246569,1750713084563,-460.0,0.00024712,2]
[367246570,1750713084572,-1090.77,0.00024712,2]
[367246571,1750713084582,-938.86,0.00024712,2]
[367246572,1750713084592,-2416.82,0.00024712,2]
[367246573,1750713084603,-267.76,0.00024712,2]
[367246574,1750713084612,-951.38,0.00024712,2]
[367246575,1750713084622,-564.51,0.00024712,2]
[367246576,1750713084632,-368.61152636,0.00024712,2]
[367246577,1750713084642,-3000.0,0.00024712,2]
[367246578,1750713084652,-3600.0,0.00024712,2]
[367246579,1750713084662,-3000.0,0.00024712,2]
[367246580,1750713084671,-647.0,0.00024713,2]
[367246581,1750713084681,-255.58615334,0.00024713,2]
[367246582,1750713084691,-460.0,0.00024713,2]
[367246583,1750713084701,-638.1,0.00024713,2]
[367246584,1750713084711,-460.0,0.00024713,2]
[367246585,1750713084720,-741.03,0.00024713,2]
[367246586,1750713084730,-749.26,0.00024713,2]
[367246587,1750713084740,-299.23336847,0.00024713,2]
[367246588,1750713084750,-2045.16,0.00024713,2]
[367246589,1750713084760,-476.44,0.00024713,2]
[367246590,1750713084770,-610.23,0.00024713,2]
[367246591,1750713084780,-3382.79,0.00024713,2]
[367246592,1750713084790,-588.75,0.00024713,2]
[367246593,1750713084800,-2795.99,0.00024713,2]
[367246594,1750713084810,-1238.41,0.00024713,2]
[367246595,1750713084826,-266.68326452,0.00024716,2]
[367246596,1750713084839,-434.88,0.00024716,4]
[367246597,1750713084849,-757.95,0.00024716,2]
[367246598,1750713084858,-468.15,0.00024716,2]
[367246599,1750713084869,-472.41,0.00024716,2]
[367246600,1750713084878,-696.67,0.00024716,2]
[367246601,1750713084888,-632.2,0.00024716,2]
[367246602,1750713084897,-529.18295106,0.00024725,2]
[367246603,1750713084907,-3758.27849114,0.00024728,11]
[367246604,1750713084917,-600.0,0.00024728,2]
[367246605,1750713084926,-600.0,0.00024732,2]
[367246606,1750713084936,-647.0,0.0002474,2]
[367246607,1750713084945,-5500.0,0.00024752,2]
[367246608,1750713084955,-250708.09232768,0.00024755,2]
[367246609,1750713084966,-600.0,0.00024761,2]
[367246610,1750713084977,-1305.0,0.00024765,26]
[367246611,1750713084987,-647.0,0.00024768,2]
[367246612,1750713084996,-12902.86195498,0.00024774,2]
[367246613,1750713085006,-3000.0,0.00024788,3]
[367246614,1750713085016,-647.0,0.00024795,2]
[367246615,1750713085025,-101611.88131164,0.000248,2]
[367246616,1750713085035,-669.7,0.000248,6]
[367246617,1750713085045,-196793.299341,0.000248,2]
[367246618,1750713085054,-177.457047,0.00024816,30]
[367246619,1750713085064,-647.0,0.00024822,2]
[367246620,1750713085073,-4000.0,0.00024826,3]
[367246621,1750713085084,-500.0,0.00024846,2]
[367246622,1750713085095,-647.0,0.0002485,2]
[367246623,1750713085107,-823.0,0.0002487,2]
[367246624,1750713085117,-500.0,0.00024871,2]
[367246625,1750713085127,-823.0,0.00024872,2]
[367246626,1750713085136,-800.0,0.00024876,2]
[367246627,1750713085147,-647.0,0.00024877,2]
[367246628,1750713085157,-800.0,0.00024891,2]
[367246629,1750713085167,-5000.0,0.00024896,3]
[367246630,1750713085176,-610218.315575,0.000249,2]
[367246631,1750713085186,-647.0,0.00024905,2]
[367246632,1750713085196,-500.0,0.00024916,2]
[367246633,1750713085205,-200.0,0.00024931,120]
[367246634,1750713085215,-500.0,0.00024931,15]
[367246635,1750713085224,-647.0,0.00024932,2]
[367246636,1750713085234,-500.0,0.00024933,2]
[367246637,1750713085244,-600.0,0.00024934,2]
[367246638,1750713085254,-1275.62,0.00024941,7]
[367246639,1750713085265,-3097.7880908,0.0002495,2]
[367246640,1750713085274,-200.0,0.0002495,12]
[367246641,1750713085285,-800.0,0.00024958,2]
[367246642,1750713085294,-647.0,0.00024959,2]
[367246643,1750713085304,-3758.27849114,0.00024969,12]
[367246644,1750713085314,-1917.77,0.00024973,2]
[367246645,1750713085325,-1996.47,0.00024973,2]
[367246646,1750713085335,-600.0,0.00024974,2]
[367246647,1750713085345,-500.0,0.00024975,2]
[367246648,1750713085356,-768.95,0.00024976,2]
[367246649,1750713085366,-499.06,0.00024976,2]
[367246650,1750713085376,-1326.42,0.00024976,2]
[367246651,1750713085563,-1916.14,0.00024976,2]
[367246652,1750713085573,-2981.58,0.00024976,2]
[367246653,1750713085584,-561.49,0.00024976,2]
[367246654,1750713085593,-998.87,0.00024976,2]
[367246655,1750713085604,-746.54,0.00024976,2]
[367246656,1750713085613,-1197.46,0.00024976,2]
[367246657,1750713085622,-868.07,0.00024976,2]
[367246658,1750713085632,-608.93,0.00024976,2]
[367246659,1750713085641,-3607.91,0.00024976,2]
[367246660,1750713085651,-1233.5,0.00024976,2]
[367246661,1750713085660,-852.78,0.00024976,2]
[367246662,1750713085669,-811.33,0.00024976,2]
[367246663,1750713085678,-1119.643591,0.0002498,5]
[367246664,1750713085687,-5000.0,0.00024982,3]
[367246665,1750713085696,-555.63,0.00024983,2]
[367246666,1750713085706,-834.36,0.00024983,2]
[367246667,1750713085715,-460.0,0.00024983,2]
[367246668,1750713085725,-460.0,0.00024983,2]
[367246669,1750713085734,-460.0,0.00024983,2]
[367246670,1750713085744,-1007.44,0.00024983,2]
[367246671,1750713085756,-460.0,0.00024983,2]
[367246672,1750713085766,-778.84,0.00024983,2]
[367246673,1750713085777,-691.92,0.00024983,2]
[367246674,1750713085787,-681.31,0.00024983,2]
[367246675,1750713085797,-673.85,0.00024983,2]
[367246676,1750713085807,-688.21,0.00024983,2]
[367246677,1750713085816,-460.0,0.00024983,2]
[367246678,1750713085826,-611.84,0.00024983,2]
[367246679,1750713085835,-1114.83,0.00024983,2]
[367246680,1750713085844,-872.33,0.00024983,2]
[367246681,1750713085853,-460.0,0.00024983,2]
[367246682,1750713085863,-648.26,0.00024983,2]
[367246683,1750713085873,-474.73,0.00024983,2]
[367246684,1750713085883,-1112.93,0.00024983,2]
[367246685,1750713085892,-1763.36,0.00024986,2]
[367246686,1750713085903,-735.83,0.00024986,2]
[367246687,1750713085913,-6806.59,0.00024986,2]
[367246688,1750713085922,-1456.91,0.00024986,2]
[367246689,1750713085931,-1053.14,0.00024986,2]
[367246690,1750713085941,-799.06,0.00024986,2]
[367246691,1750713085950,-460.0,0.00024986,2]
[367246692,1750713085959,-1090.77,0.00024986,2]
[367246693,1750713085971,-938.86,0.00024986,2]
[367246694,1750713085982,-2416.82,0.00024986,2]
[367246695,1750713085992,-951.38,0.00024986,2]
[367246696,1750713086004,-564.51,0.00024986,2]
[367246697,1750713086013,-647.0,0.00024987,2]
[367246698,1750713086023,-460.0,0.00024987,2]
[367246699,1750713086034,-638.1,0.00024987,2]
[367246700,1750713086045,-460.0,0.00024987,2]
[367246701,1750713086055,-741.03,0.00024987,2]
[367246702,1750713086065,-749.26,0.00024987,2]
[367246703,1750713086075,-2045.16,0.00024987,2]
[367246704,1750713086084,-476.44,0.00024987,2]
[367246705,1750713086094,-800.0,0.00024987,2]
[367246706,1750713086104,-610.23,0.00024987,2]
[367246707,1750713086113,-3382.79,0.00024987,2]
[367246708,1750713086123,-588.75,0.00024987,2]
[367246709,1750713086132,-2795.99,0.00024987,2]
[367246710,1750713086141,-1238.41,0.00024987,2]
[367246711,1750713086150,-434.88,0.0002499,4]
[367246712,1750713086160,-757.95,0.0002499,2]
[367246713,1750713086169,-468.15,0.0002499,2]
[367246714,1750713086178,-472.41,0.0002499,2]
[367246715,1750713086188,-696.67,0.0002499,2]
[367246716,1750713086197,-632.2,0.0002499,2]
[367246717,1750713086206,-183.64211493,0.00025,2]
[367246718,1750713086216,-430.62,0.00025,2]
[367246719,1750713086225,-118981.54854282,0.00025,2]
[367246720,1750713086234,-1061.35136636,0.00025,2]
[367246721,1750713086246,-15963.60811108,0.00025,2]
[367246722,1750713086255,-24493.67953749,0.00025,2]
[367246723,1750713086264,-2613.71432234,0.00025,2]
[367246724,1750713086273,-207.3368676,0.00025,2]
[367246725,1750713086283,-10364.0,0.00025,2]
[367246726,1750713086292,-357.90355067,0.00025,2]
[367246727,1750713086301,-285.04440931,0.00025,120]
[367246728,1750713086310,-150.0,0.00025,2]
[367246729,1750713086319,-150.0,0.00025,3]
[367246730,1750713086328,-172.51249817,0.00025,2]
[367246731,1750713086337,-668.71667149,0.00025,7]
[367246732,1750713086347,-296.72953933,0.00025,120]
[367246733,1750713086359,-4306.92523848,0.00025,120]
[367246734,1750713086368,-16797.27534035,0.00025,30]
[367246735,1750713086377,-50297.91868364,0.00025,2]
[367246736,1750713086387,-153.0,0.00025,120]
[367246737,1750713086396,-160.0,0.00025,30]
[367246738,1750713086405,-72060.83,0.00025,2]
[367246739,1750713086414,-1000.0,0.00025,5]
[367246740,1750713086424,-10000.0,0.00025,7]
[367246741,1750713086434,-524.09497732,0.00025,30]
[367246742,1750713086443,-160.0,0.00025,3]
[367246743,1750713086452,-846.53928378,0.00025,10]
[367246744,1750713086462,-846.53928378,0.00025,30]
[367246745,1750713086476,-846.53928378,0.00025,3]
[367246746,1750713086486,-230.18214666,0.00025,10]
[367246747,1750713086495,-230.18214666,0.00025,30]
[367246748,1750713086505,-230.18214666,0.00025,3]
[367246749,1750713086515,-160.0,0.00025,10]
[367246750,1750713086524,-160.0,0.00025,30]
[367246751,1750713086534,-12553.69357174,0.00025,10]
[367246752,1750713086544,-12553.69357174,0.00025,30]
[367246753,1750713086555,-160.0,0.00025,3]
[367246754,1750713086565,-836.70095952,0.00025,10]
[367246755,1750713086575,-836.70095952,0.00025,30]
[367246756,1750713086584,-836.70095952,0.00025,3]
[367246757,1750713086593,-202.792473,0.00025,2]
[367246758,1750713086606,-425.08510397,0.00025,10]
[367246759,1750713086617,-425.08510397,0.00025,30]
[367246760,1750713086626,-213.63163053,0.00025,10]
[367246761,1750713086636,-213.63163053,0.00025,30]
[367246762,1750713086645,-213.63163053,0.00025,120]
[367246763,1750713086655,-160.0,0.00025,10]
[367246764,1750713086664,-160.0,0.00025,30]
[367246765,1750713086673,-500.0,0.00025005,2]
[367246766,1750713086683,-293.61,0.00025006,2]
[367246767,1750713086692,-647.0,0.00025014,2]
[367246768,1750713086702,-600.0,0.00025016,2]
[367246769,1750713086711,-1275.62,0.00025041,2]
[367246770,1750713086720,-647.0,0.00025042,2]
[367246771,1750713086730,-8680.42014708,0.00025049,2]
[367246772,1750713086739,-200.0,0.00025068,120]
[367246773,1750713086750,-325.86448304,0.00025068,2]
[367246774,1750713086760,-647.0,0.00025069,2]
[367246775,1750713086770,-600.0,0.00025075,2]
[367246776,1750713086780,-647.0,0.00025096,2]
[367246777,1750713086791,-4000.0,0.00025105,4]
[367246778,1750713086802,-800.0,0.00025115,2]
[367246779,1750713086813,-647.0,0.00025124,2]
[367246780,1750713086824,-1000.0,0.00025126,3]
[367246781,1750713086836,-1275.62,0.00025141,2]
[367246782,1750713086848,-647.0,0.00025151,2]
[367246783,1750713086860,-500.0,0.00025163,2]
[367246784,1750713086869,-750.0,0.00025164,2]
[367246785,1750713086877,-647.0,0.00025179,2]
[367246786,1750713086886,-153.0,0.00025179,2]
[367246787,1750713086896,-306.0,0.00025195,2]
[367246788,1750713086905,-600.0,0.00025197,2]
[367246789,1750713086915,-3834.36,0.000252,7]
[367246790,1750713086925,-800.0,0.000252,2]
[367246791,1750713086934,-200.0,0.00025205,120]
[367246792,1750713086943,-500.0,0.00025205,30]
[367246793,1750713086953,-647.0,0.00025206,2]
[367246794,1750713086962,-3758.27849114,0.0002521,12]
[367246795,1750713086973,-500.0,0.00025221,2]
[367246796,1750713086982,-293.61,0.00025229,30]
[367246797,1750713086992,-3292.0,0.00025233,2]
[367246798,1750713087001,-647.0,0.00025233,2]
[367246799,1750713087011,-600.0,0.00025237,2]
[367246800,1750713087020,-1275.62,0.00025241,2]
[367246801,1750713087029,-1917.77,0.00025247,2]
[367246802,1750713087038,-1996.47,0.00025247,2]
[367246803,1750713087047,-768.95,0.0002525,2]
[367246804,1750713087056,-499.06,0.0002525,2]
[367246805,1750713087066,-1326.42,0.0002525,2]
[367246806,1750713087075,-1916.14,0.0002525,2]
[367246807,1750713087084,-2981.58,0.0002525,2]
[367246808,1750713087093,-561.49,0.0002525,2]
[367246809,1750713087102,-998.87,0.0002525,2]
[367246810,1750713087111,-746.54,0.0002525,2]
[367246811,1750713087120,-1197.46,0.0002525,2]
[367246812,1750713087129,-868.07,0.0002525,2]
[367246813,1750713087138,-608.93,0.0002525,2]
[367246814,1750713087150,-3607.91,0.0002525,2]
[367246815,1750713087160,-1233.5,0.0002525,2]
[367246816,1750713087169,-852.78,0.0002525,2]
[367246817,1750713087178,-811.33,0.0002525,2]
[367246818,1750713087188,-555.63,0.00025257,2]
[367246819,1750713087198,-834.36,0.00025257,2]
[367246820,1750713087207,-171.32644396,0.00025257,2]
[367246821,1750713087216,-460.0,0.00025257,2]
[367246822,1750713087226,-371.08299602,0.00025257,2]
[367246823,1750713087234,-1007.44,0.00025257,2]
[367246824,1750713087245,-490.92178167,0.00025257,2]
[367246825,1750713087255,-778.84,0.00025257,2]
[367246826,1750713087264,-691.92,0.00025257,2]
[367246827,1750713087274,-681.31,0.00025257,2]
[367246828,1750713087283,-673.85,0.00025257,2]
[367246829,1750713087293,-688.21,0.00025257,2]
[367246830,1750713087304,-460.0,0.00025257,2]
[367246831,1750713087314,-611.84,0.00025257,2]
[367246832,1750713087323,-1114.83,0.00025257,2]
[367246833,1750713087332,-872.33,0.00025257,2]
[367246834,1750713087341,-303.06454602,0.00025257,2]
[367246835,1750713087351,-648.26,0.00025257,2]
[367246836,1750713087360,-474.73,0.00025257,2]
[367246837,1750713087369,-1112.93,0.00025257,2]
[367246838,1750713087379,-1763.36,0.0002526,2]
[367246839,1750713087388,-735.83,0.0002526,2]
[367246840,1750713087398,-6806.59,0.0002526,2]
[367246841,1750713087407,-1456.91,0.0002526,2]
[367246842,1750713087417,-1053.14,0.0002526,2]
[367246843,1750713087425,-799.06,0.0002526,2]
[367246844,1750713087434,-582.59439223,0.0002526,2]
[367246845,1750713087443,-1090.77,0.0002526,2]
[367246846,1750713087452,-938.86,0.0002526,2]
[367246847,1750713087461,-2416.82,0.0002526,2]
[367246848,1750713087471,-951.38,0.0002526,2]
[367246849,1750713087482,-564.51,0.0002526,2]
[367246850,1750713087492,-3500.0,0.0002526,2]
[367246851,1750713087501,-4200.0,0.0002526,2]
[367246852,1750713087511,-3500.0,0.0002526,2]
[367246853,1750713087521,-647.0,0.00025261,2]
[367246854,1750713087530,-490.02910138,0.00025261,2]
[367246855,1750713087539,-638.1,0.00025261,2]
[367246856,1750713087549,-460.0,0.00025261,2]
[367246857,1750713087558,-741.03,0.00025261,2]
[367246858,1750713087567,-749.26,0.00025261,2]
[367246859,1750713087577,-2045.16,0.00025261,2]
[367246860,1750713087586,-476.44,0.00025261,2]
[367246861,1750713087596,-610.23,0.00025261,2]
[367246862,1750713087606,-3382.79,0.00025261,2]
[367246863,1750713087615,-588.75,0.00025261,2]
[367246864,1750713087626,-2795.99,0.00025261,2]
[367246865,1750713087635,-1238.41,0.00025261,2]
[367246866,1750713087645,-434.88,0.00025264,4]
[367246867,1750713087654,-757.95,0.00025264,2]
[367246868,1750713087664,-468.15,0.00025264,2]
[367246869,1750713087673,-472.41,0.00025264,2]
[367246870,1750713087683,-696.67,0.00025264,2]
[367246871,1750713087694,-632.2,0.00025264,2]
[367246872,1750713087703,-800.0,0.00025276,2]
[367246873,1750713087713,-200.0,0.00025288,120]
[367246874,1750713087722,-666.04539288,0.00025288,2]
[367246875,1750713087732,-600.0,0.00025295,2]
[367246876,1750713087855,-2284.86235457,0.000253,2]
[367246877,1750713087865,-9048.01,0.000253,7]
[367246878,1750713087875,-600.0,0.00025306,2]
[367246879,1750713087887,-1275.62,0.00025341,7]
[367246880,1750713087898,-200.0,0.00025342,120]
[367246881,1750713087908,-800.0,0.00025346,2]
[367246882,1750713087920,-500.0,0.00025358,2]
[367246883,1750713087929,-168.0,0.00025373,7]
[367246884,1750713087939,-800.0,0.00025378,2]
[367246885,1750713087948,-5000.0,0.00025384,2]
[367246886,1750713087958,-800.0,0.0002539,2]
[367246887,1750713087967,-500.0,0.0002539,2]
[367246888,1750713087978,-800.0,0.00025399,2]
[367246889,1750713087987,-507.77545254,0.00025433,2]
[367246890,1750713087996,-800.0,0.00025436,2]
[367246891,1750713088005,-800.0,0.00025438,2]
[367246892,1750713088015,-1275.62,0.00025441,6]
[367246893,1750713088024,-3758.27849114,0.00025452,13]
[367246894,1750713088033,-500.0,0.00025454,2]
[367246895,1750713088042,-600.0,0.00025456,2]
[367246896,1750713088051,-200.0,0.00025462,120]
[367246897,1750713088061,-200.0,0.00025479,120]
[367246898,1750713088070,-555.52168183,0.00025479,16]
[367246899,1750713088079,-500.0,0.00025505,2]
[367246900,1750713088089,-500.0,0.00025506,2]
[367246901,1750713088098,-1918.00047749,0.00025521,2]
[367246902,1750713088108,-1996.57067526,0.00025521,2]
[367246903,1750713088118,-769.01914025,0.00025524,2]
[367246904,1750713088128,-499.0861151,0.00025524,2]
[367246905,1750713088137,-1326.64,0.00025524,2]
[367246906,1750713088147,-1916.35387823,0.00025524,2]
[367246907,1750713088157,-2981.7126086,0.00025524,2]
[367246908,1750713088166,-561.66875478,0.00025524,2]
[367246909,1750713088175,-998.95,0.00025524,2]
[367246910,1750713088184,-746.75158866,0.00025524,2]
[367246911,1750713088194,-1197.49243408,0.00025524,2]
[367246912,1750713088203,-868.15320232,0.00025524,2]
[367246913,1750713088213,-609.1257655,0.00025524,2]
[367246914,1750713088222,-3607.91209315,0.00025524,2]
[367246915,1750713088231,-1233.53882938,0.00025524,2]
[367246916,1750713088240,-852.84798301,0.00025524,2]
[367246917,1750713088249,-811.40729449,0.00025524,2]
[367246918,1750713088259,-555.64949465,0.00025531,2]
[367246919,1750713088268,-834.38172509,0.00025531,2]
[367246920,1750713088278,-355.62269896,0.00025531,2]
[367246921,1750713088287,-1007.53569582,0.00025531,2]
[367246922,1750713088297,-778.89799647,0.00025531,2]
[367246923,1750713088307,-692.13735015,0.00025531,2]
[367246924,1750713088316,-681.3141416,0.00025531,2]
[367246925,1750713088325,-674.04536301,0.00025531,2]
[367246926,1750713088335,-688.42755811,0.00025531,2]
[367246927,1750713088344,-379.29379308,0.00025531,2]
[367246928,1750713088353,-612.00149384,0.00025531,2]
[367246929,1750713088363,-1114.85952282,0.00025531,2]
[367246930,1750713088373,-872.56216061,0.00025531,2]
[367246931,1750713088383,-648.31000594,0.00025531,2]
[367246932,1750713088392,-474.78264472,0.00025531,2]
[367246933,1750713088401,-1112.96360516,0.00025531,2]
[367246934,1750713088411,-200.0,0.00025533,120]
[367246935,1750713088420,-1763.57488455,0.00025534,2]
[367246936,1750713088431,-735.84188602,0.00025534,2]
[367246937,1750713088441,-6806.62401695,0.00025534,2]
[367246938,1750713088450,-1457.14793649,0.00025534,2]
[367246939,1750713088459,-1053.36909547,0.00025534,2]
[367246940,1750713088469,-799.2427498,0.00025534,2]
[367246941,1750713088482,-1090.97990379,0.00025534,2]
[367246942,1750713088492,-939.02936791,0.00025534,2]
[367246943,1750713088502,-2416.96174891,0.00025534,2]
[367246944,1750713088512,-951.38687664,0.00025534,2]
[367246945,1750713088521,-564.65812888,0.00025534,2]
[367246946,1750713088531,-638.15,0.00025535,2]
[367246947,1750713088540,-278.50140578,0.00025535,2]
[367246948,1750713088552,-741.15612686,0.00025535,2]
[367246949,1750713088561,-749.46075026,0.00025535,2]
[367246950,1750713088571,-2045.21954359,0.00025535,2]
[367246951,1750713088581,-476.48747917,0.00025535,2]
[367246952,1750713088590,-610.28504477,0.00025535,2]
[367246953,1750713088601,-3382.92968951,0.00025535,2]
[367246954,1750713088610,-588.97592852,0.00025535,2]
[367246955,1750713088620,-2796.22803635,0.00025535,2]
[367246956,1750713088629,-1238.56552299,0.00025535,2]
[367246957,1750713088639,-435.08081517,0.00025538,4]
[367246958,1750713088648,-758.0995233,0.00025538,2]
[367246959,1750713088658,-468.31138794,0.00025538,2]
[367246960,1750713088668,-472.41282899,0.00025538,2]
[367246961,1750713088677,-696.72226113,0.00025538,2]
[367246962,1750713088687,-632.22206359,0.00025538,2]